fUSD/lending_fUSD_20260628
["ID","MTS","AMOUNT","RATE_DAILY","PERIOD"]
[426544003,1782576249000,-200.0,0.0001473,2]
[426544004,1782576249000,-267.97465902,0.0001473,2]
[426544007,1782576249000,-152.0,0.00014998,2]
[426544010,1782576249000,-600.0,0.00014999,2]
[426544008,1782576249000,-2500.0,0.00014999,2]
[426544011,1782576249000,-1943801.06534098,0.00015,2]
[426543999,1782576249000,-1812.16,0.00013698,2]
[426544012,1782576252000,-610186.38160604,0.00015,2]
[426544013,1782576255000,191.05055085,0.00012389,2]
[426544014,1782576263000,2000.0,0.0001229,2]
[426544015,1782576267000,310.05138709,0.00012389,2]
[426544016,1782576269000,449.02,0.00037352,120]
[426544017,1782576271000,488579.0822294,0.0001493,2]
[426544018,1782576358000,14159.0286972,0.00014981,2]
[426544019,1782576373000,232.29,0.000151,120]
[426544020,1782576385000,2000.0,0.0001229,2]
[426544021,1782576401000,3032.4389351,0.00014981,2]
[426544024,1782576419000,500.0,0.0002824,120]
[426544023,1782576419000,500.0,0.0002824,120]
[426544022,1782576419000,500.0,0.0002824,120]
[426544025,1782576420000,243.4002016,0.0002824,120]
[426544026,1782576430000,150.0,0.00015,2]
[426544027,1782576444000,151.0,0.00037352,120]
[426544028,1782576444000,114808.3062791,0.00014981,2]
[426544031,1782576445000,151.0,0.00037352,120]
[426544030,1782576445000,151.0,0.00037352,120]
[426544029,1782576445000,151.0,0.00037352,120]
[426544033,1782576446000,151.0,0.00037352,120]
[426544032,1782576446000,151.0,0.00037352,120]
[426544035,1782576447000,151.0,0.00037352,120]
[426544034,1782576447000,151.0,0.00037352,120]
[426544036,1782576448000,151.0,0.00037352,120]
[426544037,1782576448000,151.0,0.00037352,120]
[426544039,1782576449000,151.0,0.00037352,120]
[426544038,1782576449000,1018.63,0.00037352,120]
[426544042,1782576516000,500.0,0.00013698,2]
[426544041,1782576516000,500.0,0.00013698,2]
[426544040,1782576516000,500.0,0.00013698,2]
[426544045,1782576517000,500.0,0.00013698,2]
[426544044,1782576517000,500.0,0.00013698,2]
[426544043,1782576517000,500.0,0.00013698,2]
[426544046,1782576518000,500.0,0.00013698,2]
[426544047,1782576518000,500.0,0.00013698,2]
[426544049,1782576518000,521.36271652,0.00013698,2]
[426544048,1782576518000,500.0,0.00013698,2]
[426544051,1782576547000,500.0,0.00013698,2]
[426544050,1782576547000,500.0,0.00013698,2]
[426544054,1782576548000,500.0,0.00013698,2]
[426544053,1782576548000,500.0,0.00013698,2]
[426544052,1782576548000,250.0,0.00014,2]
[426544056,1782576549000,500.0,0.00013698,2]
[426544055,1782576549000,500.0,0.00013698,2]
[426544057,1782576554000,500.0,0.00013698,2]
[426544059,1782576554000,500.0,0.00013698,2]
[426544058,1782576554000,500.0,0.00013698,2]
[426544063,1782576555000,500.0,0.00013698,2]
[426544062,1782576555000,500.0,0.00013698,2]
[426544061,1782576555000,500.0,0.00013698,2]
[426544060,1782576555000,500.0,0.00013698,2]
[426544065,1782576556000,535.7374899,0.00013698,2]
[426544064,1782576556000,500.0,0.00013698,2]
[426544066,1782576616000,580.9162384,0.00014981,2]
[426544067,1782576620000,2500.0,0.00037338,120]
[426544088,1782576631000,-914.0,0.00015061,2]
[426544087,1782576631000,-300.0,0.00015061,2]
[426544090,1782576631000,-300.0,0.00015061,2]
[426544091,1782576631000,-152.0,0.00015061,2]
[426544094,1782576631000,-152.0,0.00015061,2]
[426544095,1782576631000,-151.0,0.00015061,2]
[426544093,1782576631000,-151.0,0.00015061,2]
[426544097,1782576631000,-152.0,0.00015061,2]
[426544089,1782576631000,-300.0,0.00015061,2]
[426544100,1782576631000,-151.0,0.00015061,2]
[426544099,1782576631000,-183.52982041,0.00015061,2]
[426544098,1782576631000,-152.0,0.00015061,2]
[426544092,1782576631000,-151.0,0.00015061,2]
[426544086,1782576631000,-893.0,0.0001506,2]
[426544084,1782576631000,-917.0,0.0001506,2]
[426544082,1782576631000,-600.0,0.0001506,2]
[426544080,1782576631000,-901.0,0.0001506,2]
[426544083,1782576631000,-600.0,0.0001506,2]
[426544081,1782576631000,-600.54937253,0.0001506,2]
[426544079,1782576631000,-150.0,0.0001506,2]
[426544077,1782576631000,-239.88004649,0.0001506,2]
[426544072,1782576631000,-150.0,0.0001506,2]
[426544096,1782576631000,-152.0,0.00015061,2]
[426544075,1782576631000,-152.0,0.0001506,2]
[426544073,1782576631000,-153.0,0.0001506,2]
[426544074,1782576631000,-152.0,0.0001506,2]
[426544076,1782576631000,-360.11995351,0.0001506,2]
[426544071,1782576631000,-300.0,0.0001506,2]
[426544085,1782576631000,-909.0,0.0001506,2]
[426544101,1782576631000,-151.0,0.00015061,2]
[426544078,1782576631000,-2410.95052561,0.0001506,2]
[426544103,1782576631000,-151.0,0.00015061,2]
[426544102,1782576631000,-151.0,0.00015061,2]
[426544145,1782576631000,-893.0,0.00015062,2]
[426544143,1782576631000,-912.0,0.00015062,2]
[426544146,1782576631000,-904.0,0.00015062,2]
[426544137,1782576631000,-905.0,0.00015062,2]
[426544139,1782576631000,-3062.05993005,0.00015062,2]
[426544141,1782576631000,-900.0,0.00015062,2]
[426544125,1782576631000,-914.0,0.00015061,2]
[426544123,1782576631000,-890.0,0.00015061,2]
[426544117,1782576631000,-891.0,0.00015061,2]
[426544121,1782576631000,-895.0,0.00015061,2]
[426544131,1782576631000,-915.0,0.00015061,2]
[426544135,1782576631000,-907.0,0.00015062,2]
[426544115,1782576631000,-907.0,0.00015061,2]
[426544118,1782576631000,-915.0,0.00015061,2]
[426544119,1782576631000,-895.0,0.00015061,2]
[426544133,1782576631000,-886.0,0.00015061,2]
[426544127,1782576631000,-904.0,0.00015061,2]
[426544105,1782576631000,-151.0,0.00015061,2]
[426544109,1782576631000,-917.0,0.00015061,2]
[426544106,1782576631000,-895.0,0.00015061,2]
[426544107,1782576631000,-895.0,0.00015061,2]
[426544104,1782576631000,-153.0,0.00015061,2]
[426544108,1782576631000,-892.0,0.00015061,2]
[426544114,1782576631000,-895.0,0.00015061,2]
[426544110,1782576631000,-891.0,0.00015061,2]
[426544111,1782576631000,-885.0,0.00015061,2]
[426544113,1782576631000,-898.0,0.00015061,2]
[426544116,1782576631000,-904.0,0.00015061,2]
[426544129,1782576631000,-883.0,0.00015061,2]
[426544112,1782576631000,-906.0,0.00015061,2]
[426544153,1782576632000,-895.0,0.00015062,2]
[426544158,1782576632000,-891.0,0.00015062,2]
[426544163,1782576632000,-151.0,0.00015062,2]
[426544161,1782576632000,-913.0,0.00015062,2]
[426544156,1782576632000,-152.0,0.00015062,2]
[426544154,1782576632000,-906.0,0.00015062,2]
[426544149,1782576632000,-910.0,0.00015062,2]
[426544152,1782576632000,-204.36322442,0.00015062,2]
[426544150,1782576632000,-907.0,0.00015062,2]
[426544148,1782576632000,-150.0,0.00015062,2]
[426544147,1782576632000,-890.0,0.00015062,2]
[426544160,1782576632000,-151.0,0.00015062,2]
[426544151,1782576632000,-901.0,0.00015062,2]
[426544157,1782576632000,-895.0,0.00015062,2]
[426544174,1782576632000,-38593.98710349,0.0001531,2]
[426544155,1782576632000,-891.0,0.00015062,2]
[426544175,1782576632000,-15198.1471958,0.0001531,2]
[426544176,1782576632000,-840.6561575,0.0001531,2]
[426544173,1782576632000,-1576.76,0.0001531,2]
[426544159,1782576632000,-902.0,0.00015062,2]
[426544165,1782576632000,-164.0,0.00015062,2]
[426544171,1782576632000,-299.99,0.0001531,2]
[426544172,1782576632000,-999.99,0.0001531,2]
[426544168,1782576632000,-150.0,0.00015147,2]
[426544167,1782576632000,-150.0,0.00015147,2]
[426544169,1782576632000,-237.34594247,0.00015147,2]
[426544166,1782576632000,-160.0,0.00015126,2]
[426544164,1782576632000,-912.0,0.00015062,2]
[426544162,1782576632000,-904.0,0.00015062,2]
[426544170,1782576632000,-164.0,0.0001531,2]
[426544205,1782576637000,-150.99,0.0001531,2]
[426544201,1782576637000,-9999.99,0.0001531,2]
[426544204,1782576637000,-1341.34444015,0.0001531,2]
[426544200,1782576637000,-4999.99,0.0001531,2]
[426544198,1782576637000,-11783.76756166,0.0001531,2]
[426544197,1782576637000,-152.0,0.0001506,2]
[426544199,1782576637000,-1416.29198155,0.0001531,2]
[426544203,1782576637000,-657.61623034,0.0001531,2]
[426544209,1782576637000,-4266.86,0.0001531,2]
[426544210,1782576637000,-9999.99,0.0001531,2]
[426544206,1782576637000,-363.27293779,0.0001531,2]
[426544207,1782576637000,-1899.24706221,0.0001531,2]
[426544208,1782576637000,-16383.64,0.0001531,2]
[426544213,1782576637000,-1628.43,0.00015689,2]
[426544212,1782576637000,-174.83,0.00015618,2]
[426544211,1782576637000,-9999.99,0.0001531,2]
[426544202,1782576637000,-1131.73932951,0.0001531,2]
[426544276,1782576638000,-500.0,0.00018999,2]
[426544272,1782576638000,-513.01964716,0.000189,2]
[426544274,1782576638000,-500.0,0.00018999,2]
[426544270,1782576638000,-1000.0,0.00018869,2]
[426544268,1782576638000,-500.0,0.0001872,2]
[426544252,1782576638000,-500.0,0.00018446,2]
[426544264,1782576638000,-500.0,0.0001872,2]
[426544254,1782576638000,-500.0,0.00018446,2]
[426544293,1782576638000,-1797.23092428,0.00019255,2]
[426544248,1782576638000,-603.402,0.00018172,2]
[426544266,1782576638000,-500.0,0.0001872,2]
[426544258,1782576638000,-2546.70152231,0.00018566,2]
[426544260,1782576638000,-4492.68335553,0.00018566,2]
[426544256,1782576638000,-965.01942183,0.00018566,2]
[426544250,1782576638000,-500.0,0.00018446,2]
[426544278,1782576638000,-310.49447363,0.00018999,2]
[426544282,1782576638000,-587.03373615,0.00018999,2]
[426544288,1782576638000,-466960.36410179,0.00019,2]
[426544284,1782576638000,-500.0,0.00018999,2]
[426544280,1782576638000,-500.0,0.00018999,2]
[426544286,1782576638000,-158.35338484,0.00018999,2]
[426544290,1782576638000,-165.05700372,0.00019,2]
[426544297,1782576638000,-184.5,0.00019355,7]
[426544295,1782576638000,-263.81,0.00019355,7]
[426544291,1782576638000,-21165.65550437,0.00019155,2]
[426544262,1782576638000,-500.0,0.0001872,2]
[426544244,1782576638000,-350.0,0.00018,2]
[426544238,1782576638000,-10345.63168575,0.00017972,2]
[426544235,1782576638000,-609.97598779,0.00017276,2]
[426544220,1782576638000,-487.0,0.0001619,2]
[426544214,1782576638000,-3243.08,0.0001569,2]
[426544221,1782576638000,-1814.55740185,0.000163,2]
[426544215,1782576638000,-180.793004,0.00015826,2]
[426544216,1782576638000,-262.39999999,0.00016,2]
[426544222,1782576638000,-10345.6316858,0.00016468,2]
[426544219,1782576638000,-1814.55740185,0.000161,2]
[426544218,1782576638000,-300.0,0.00016,2]
[426544217,1782576638000,-1814.55740185,0.00016,2]
[426544224,1782576638000,-300.0,0.00016566,2]
[426544226,1782576638000,-2500.0,0.00016566,2]
[426544225,1782576638000,-600.0,0.00016566,2]
[426544223,1782576638000,-1814.55740185,0.000165,2]
[426544228,1782576638000,-300.1513056,0.00016566,2]
[426544227,1782576638000,-400.09937219,0.00016566,2]
[426544232,1782576638000,-158.53,0.00016583,2]
[426544231,1782576638000,-600.0,0.00016568,2]
[426544233,1782576638000,-1814.55740185,0.000166,2]
[426544229,1782576638000,-200.0,0.00016566,2]
[426544230,1782576638000,-250.0,0.00016566,2]
[426544234,1782576638000,-164.65787956,0.00016798,2]
[426544236,1782576638000,-1628.43,0.0001765,2]
[426544240,1782576638000,-499.25980348,0.00017974,2]
[426544237,1782576638000,-3870.67,0.00017651,2]
[426544246,1782576638000,-500.0,0.00018172,2]
[426544242,1782576638000,-227.77390216,0.00018,2]
[426544302,1782576638000,-10345.63168575,0.00019475,2]
[426544336,1782576638000,-162.50414315,0.0002,2]
[426544304,1782576638000,-174.83,0.00019522,2]
[426544373,1782576638000,-500.0,0.00020421,2]
[426544374,1782576638000,-150.0,0.00020421,2]
[426544388,1782576638000,-150.0,0.00020421,2]
[426544386,1782576638000,-500.0,0.00020421,2]
[426544366,1782576638000,-173.28503155,0.00020421,2]
[426544382,1782576638000,-200.0,0.00020421,2]
[426544376,1782576638000,-500.0,0.00020421,2]
[426544378,1782576638000,-150.0,0.00020421,2]
[426544380,1782576638000,-500.0,0.00020421,2]
[426544384,1782576638000,-500.0,0.00020421,2]
[426544390,1782576638000,-199.15016486,0.00020421,2]
[426544405,1782576638000,-200.0,0.00020421,2]
[426544391,1782576638000,-150.0,0.00020421,2]
[426544411,1782576638000,-500.0,0.00020421,2]
[426544395,1782576638000,-150.0,0.00020421,2]
[426544408,1782576638000,-262.0005398,0.00020421,2]
[426544397,1782576638000,-150.0,0.00020421,2]
[426544393,1782576638000,-150.0,0.00020421,2]
[426544407,1782576638000,-500.0,0.00020421,2]
[426544399,1782576638000,-250.0,0.00020421,2]
[426544413,1782576638000,-500.0,0.00020421,2]
[426544401,1782576638000,-150.0,0.00020421,2]
[426544415,1782576638000,-500.0,0.00020421,2]
[426544417,1782576638000,-500.0,0.00020421,2]
[426544299,1782576638000,-231.6568292,0.000194,2]
[426544369,1782576638000,-178.48218684,0.00020421,2]
[426544371,1782576638000,-500.0,0.00020421,2]
[426544403,1782576638000,-150.0,0.00020421,2]
[426544364,1782576638000,-500.0,0.00020421,2]
[426544351,1782576638000,-400.0,0.0002,2]
[426544315,1782576638000,-609.97598779,0.00019819,2]
[426544313,1782576638000,-1628.43,0.00019611,2]
[426544311,1782576638000,-3004.09281809,0.0001959,2]
[426544308,1782576638000,-9093.4569,0.00019566,2]
[426544317,1782576638000,-3570.441,0.0001994,2]
[426544319,1782576638000,-405.0,0.0001994,2]
[426544321,1782576638000,-1281.426,0.0001994,2]
[426544323,1782576638000,-1365.552,0.0001994,2]
[426544327,1782576638000,-6085.0,0.0001994,2]
[426544325,1782576638000,-1234.592,0.0001994,2]
[426544330,1782576638000,-215.0,0.0002,2]
[426544334,1782576638000,-334.0,0.0002,2]
[426544306,1782576638000,-6720.78561013,0.00019566,2]
[426544345,1782576638000,-153.0,0.0002,2]
[426544329,1782576638000,-935.0,0.0001994,2]
[426544340,1782576638000,-221.0,0.0002,2]
[426544355,1782576638000,-500.0,0.00020055,2]
[426544353,1782576638000,-5699.54,0.0002,2]
[426544360,1782576638000,-21165.65550432,0.0002036,2]
[426544357,1782576638000,-205.9,0.00020357,2]
[426544343,1782576638000,-154.20718968,0.0002,2]
[426544332,1782576638000,-299.0,0.0002,2]
[426544347,1782576638000,-399.0,0.0002,2]
[426544362,1782576638000,-500.0,0.00020421,2]
[426544349,1782576638000,-182.0,0.0002,2]
[426544501,1782576639000,-182.0,0.00021,2]
[426544469,1782576639000,-500.0,0.00020421,2]
[426544507,1782576639000,-334.73,0.00021273,2]
[426544503,1782576639000,-150.0,0.00021163,2]
[426544491,1782576639000,-299.0,0.00021,2]
[426544467,1782576639000,-500.0,0.00020421,2]
[426544487,1782576639000,-1797.23092421,0.00020991,2]
[426544485,1782576639000,-10345.63168575,0.00020979,2]
[426544483,1782576639000,-2100.0,0.000209,7]
[426544481,1782576639000,-513.01964716,0.00020486,2]
[426544505,1782576639000,-5627.08,0.00021273,2]
[426544489,1782576639000,-215.0,0.00021,2]
[426544495,1782576639000,-221.0,0.00021,2]
[426544515,1782576639000,-14159.0286972,0.00021473,2]
[426544497,1782576639000,-153.0,0.00021,2]
[426544510,1782576639000,-161.22724269,0.00021451,2]
[426544512,1782576639000,-897.69285736,0.00021465,2]
[426544499,1782576639000,-399.0,0.00021,2]
[426544517,1782576639000,-3032.4389351,0.00021473,2]
[426544527,1782576639000,-1422.87,0.00021576,2]
[426544529,1782576639000,-5000.0,0.00021918,2]
[426544531,1782576639000,-1500.0,0.00021963,2]
[426544533,1782576639000,-3243.08,0.00021966,2]
[426544535,1782576639000,-1812.16,0.00021999,2]
[426544523,1782576639000,-21165.65550432,0.00021565,2]
[426544493,1782576639000,-334.0,0.00021,2]
[426544479,1782576639000,-464.80793422,0.00020421,2]
[426544421,1782576639000,-500.0,0.00020421,2]
[426544473,1782576639000,-500.0,0.00020421,2]
[426544521,1782576639000,-580.9162384,0.00021473,2]
[426544423,1782576639000,-500.0,0.00020421,2]
[426544419,1782576639000,-500.0,0.00020421,2]
[426544427,1782576639000,-500.0,0.00020421,2]
[426544436,1782576639000,-500.0,0.00020421,2]
[426544430,1782576639000,-500.0,0.00020421,2]
[426544428,1782576639000,-180.31101863,0.00020421,2]
[426544425,1782576639000,-500.0,0.00020421,2]
[426544434,1782576639000,-500.0,0.00020421,2]
[426544432,1782576639000,-500.0,0.00020421,2]
[426544438,1782576639000,-560.35118456,0.00020421,2]
[426544440,1782576639000,-500.0,0.00020421,2]
[426544477,1782576639000,-500.0,0.00020421,2]
[426544444,1782576639000,-500.0,0.00020421,2]
[426544461,1782576639000,-500.0,0.00020421,2]
[426544442,1782576639000,-150.0,0.00020421,2]
[426544449,1782576639000,-500.0,0.00020421,2]
[426544457,1782576639000,-500.0,0.00020421,2]
[426544453,1782576639000,-500.0,0.00020421,2]
[426544451,1782576639000,-409.85654528,0.00020421,2]
[426544459,1782576639000,-500.0,0.00020421,2]
[426544455,1782576639000,-500.0,0.00020421,2]
[426544463,1782576639000,-500.0,0.00020421,2]
[426544465,1782576639000,-500.0,0.00020421,2]
[426544470,1782576639000,-475.40701377,0.00020421,2]
[426544475,1782576639000,-500.0,0.00020421,2]
[426544447,1782576639000,-500.0,0.00020421,2]
[426544525,1782576639000,-1628.43,0.00021573,2]
[426544519,1782576639000,-114808.3062791,0.00021473,2]
[426544646,1782576639000,-324.209,0.0002294,2]
[426544598,1782576639000,-513.01964716,0.00022071,2]
[426544591,1782576639000,-151.0,0.00022031,2]
[426544613,1782576639000,-1637.69,0.00022466,2]
[426544600,1782576639000,-152.26269015,0.00022305,2]
[426544603,1782576639000,-300.814501,0.00022315,14]
[426544611,1782576639000,-203.18883166,0.00022411,2]
[426544609,1782576639000,-316.0,0.000224,2]
[426544606,1782576639000,-1000.0,0.000224,2]
[426544604,1782576639000,-609.97598779,0.00022362,2]
[426544619,1782576639000,-10345.63168575,0.00022482,2]
[426544621,1782576639000,-201.0,0.0002251,10]
[426544615,1782576639000,-1874.54,0.00022466,2]
[426544596,1782576639000,-151.0,0.00022031,2]
[426544623,1782576639000,-152.26269015,0.00022579,2]
[426544627,1782576639000,-21165.65550432,0.0002277,2]
[426544625,1782576639000,-1797.23092421,0.00022727,2]
[426544628,1782576639000,-152.26269015,0.00022853,2]
[426544630,1782576639000,-3563.0,0.0002294,2]
[426544648,1782576639000,-935.0,0.0002294,2]
[426544650,1782576639000,-215.0,0.00023,2]
[426544652,1782576639000,-299.0,0.00023,2]
[426544654,1782576639000,-334.0,0.00023,2]
[426544634,1782576639000,-1277.0,0.0002294,2]
[426544641,1782576639000,-1361.0,0.0002294,2]
[426544643,1782576639000,-1230.0,0.0002294,2]
[426544537,1782576639000,-215.0,0.00022,2]
[426544632,1782576639000,-282.0,0.0002294,2]
[426544593,1782576639000,-151.0,0.00022031,2]
[426544617,1782576639000,-250.72019699,0.00022481,2]
[426544581,1782576639000,-151.0,0.00022031,2]
[426544594,1782576639000,-151.0,0.00022031,2]
[426544541,1782576639000,-334.0,0.00022,2]
[426544546,1782576639000,-399.0,0.00022,2]
[426544544,1782576639000,-166.76103464,0.00022,2]
[426544548,1782576639000,-182.0,0.00022,2]
[426544549,1782576639000,-450.0,0.00022,2]
[426544556,1782576639000,-151.0,0.00022031,2]
[426544550,1782576639000,-4468.67,0.00022,2]
[426544543,1782576639000,-221.0,0.00022,2]
[426544552,1782576639000,-174.13974192,0.00022031,2]
[426544554,1782576639000,-1351.3747258,0.00022031,2]
[426544559,1782576639000,-151.0,0.00022031,2]
[426544561,1782576639000,-152.26269015,0.00022031,2]
[426544539,1782576639000,-299.0,0.00022,2]
[426544565,1782576639000,-151.0,0.00022031,2]
[426544563,1782576639000,-151.0,0.00022031,2]
[426544589,1782576639000,-151.0,0.00022031,2]
[426544579,1782576639000,-151.0,0.00022031,2]
[426544583,1782576639000,-151.0,0.00022031,2]
[426544571,1782576639000,-151.0,0.00022031,2]
[426544585,1782576639000,-151.0,0.00022031,2]
[426544587,1782576639000,-151.0,0.00022031,2]
[426544577,1782576639000,-151.0,0.00022031,2]
[426544569,1782576639000,-151.0,0.00022031,2]
[426544573,1782576639000,-151.0,0.00022031,2]
[426544568,1782576639000,-151.0,0.00022031,2]
[426544575,1782576639000,-151.0,0.00022031,2]
[426544736,1782576640000,-153.23,0.00024658,2]
[426544738,1782576640000,-151.95595905,0.00024692,2]
[426544731,1782576640000,-1000.0,0.00024658,2]
[426544715,1782576640000,-152.26269015,0.00024223,2]
[426544719,1782576640000,-152.26269015,0.00024497,2]
[426544717,1782576640000,-1797.23092421,0.00024463,2]
[426544727,1782576640000,-211.6054444,0.00024658,4]
[426544723,1782576640000,-232.29,0.000246,14]
[426544725,1782576640000,-163.25567929,0.00024657,2]
[426544740,1782576640000,-152.26269015,0.00024771,2]
[426544721,1782576640000,-405.1,0.000245,14]
[426544733,1782576640000,-157.97,0.00024658,2]
[426544753,1782576640000,-229.95029674,0.00024992,2]
[426544748,1782576640000,-220.38787864,0.00024992,2]
[426544744,1782576640000,-816.02529252,0.000249,2]
[426544742,1782576640000,-158.53,0.00024874,2]
[426544746,1782576640000,-609.97598779,0.00024905,2]
[426544755,1782576640000,-234.63845108,0.00024992,2]
[426544757,1782576640000,-225.41456301,0.00024992,2]
[426544759,1782576640000,-1812.16,0.00024999,2]
[426544770,1782576640000,-342.0,0.00025,2]
[426544751,1782576640000,-210.25148584,0.00024992,2]
[426544763,1782576640000,-54501.56208891,0.00025,2]
[426544761,1782576640000,-500.0,0.00024999,2]
[426544709,1782576640000,-897.69285736,0.00024016,2]
[426544729,1782576640000,-177.23,0.00024658,2]
[426544713,1782576640000,-926.54,0.00024174,2]
[426544768,1782576640000,-304.0,0.00025,2]
[426544705,1782576640000,-182.0,0.00024,2]
[426544656,1782576640000,-221.0,0.00023,2]
[426544662,1782576640000,-500.0,0.00023103,2]
[426544660,1782576640000,-182.0,0.00023,2]
[426544666,1782576640000,-154.42815987,0.00023288,2]
[426544664,1782576640000,-152.26269015,0.00023127,2]
[426544668,1782576640000,-152.26269015,0.00023401,2]
[426544658,1782576640000,-399.0,0.00023,2]
[426544672,1782576640000,-250.490589,0.0002352,14]
[426544676,1782576640000,-513.01964716,0.00023657,2]
[426544670,1782576640000,-174.83,0.00023427,2]
[426544674,1782576640000,-1628.43,0.00023534,2]
[426544678,1782576640000,-152.26269015,0.00023675,2]
[426544711,1782576640000,-985.76,0.00024174,2]
[426544680,1782576640000,-513.37,0.00023803,2]
[426544684,1782576640000,-21165.65550432,0.00023975,2]
[426544686,1782576640000,-203.18883166,0.00023976,2]
[426544682,1782576640000,-152.26269015,0.00023949,2]
[426544694,1782576640000,-129633.62687944,0.00024,2]
[426544698,1782576640000,-299.0,0.00024,2]
[426544696,1782576640000,-215.0,0.00024,2]
[426544688,1782576640000,-10345.63168575,0.00023986,2]
[426544690,1782576640000,-551.91385334,0.0002399,2]
[426544701,1782576640000,-221.0,0.00024,2]
[426544700,1782576640000,-334.0,0.00024,2]
[426544703,1782576640000,-399.0,0.00024,2]
[426544707,1782576640000,-500.0,0.00024,2]
[426544692,1782576640000,-151.0,0.00023997,7]
[426544766,1782576640000,-228.0,0.00025,2]
[426544876,1782576640000,-661.16363591,0.00026393,2]
[426544774,1782576640000,-399.0,0.00025,2]
[426544844,1782576640000,-211.60544441,0.00026137,4]
[426544833,1782576640000,-935.0,0.0002594,2]
[426544840,1782576640000,-1812.16,0.00026089,2]
[426544838,1782576640000,-200.0,0.00026016,2]
[426544836,1782576640000,-6690.19793302,0.00026,2]
[426544848,1782576640000,-6690.19793302,0.00026222,2]
[426544851,1782576640000,-153.23,0.00026243,30]
[426544853,1782576640000,-1812.16,0.00026321,2]
[426544850,1782576640000,-157.97,0.00026243,30]
[426544846,1782576640000,-1797.23092421,0.00026199,2]
[426544855,1782576640000,-1812.16,0.00026321,2]
[426544857,1782576640000,-1812.16,0.00026321,2]
[426544842,1782576640000,-173.0,0.00026137,5]
[426544860,1782576640000,-1812.16,0.00026321,2]
[426544868,1782576640000,-1812.16,0.00026321,2]
[426544862,1782576640000,-1812.16,0.00026321,2]
[426544873,1782576640000,-361.90256113,0.00026393,2]
[426544872,1782576640000,-371.78801824,0.00026393,2]
[426544870,1782576640000,-21165.65550432,0.00026385,2]
[426544881,1782576640000,-240.91735405,0.00026393,2]
[426544878,1782576640000,-630.75445753,0.00026393,2]
[426544879,1782576640000,-689.85089022,0.00026393,2]
[426544883,1782576640000,-703.91535323,0.00026393,2]
[426544887,1782576640000,-357.24200063,0.00026393,2]
[426544885,1782576640000,-676.24368902,0.00026393,2]
[426544772,1782576640000,-228.0,0.00025,2]
[426544864,1782576640000,-1812.16,0.00026321,2]
[426544832,1782576640000,-1230.0,0.0002594,2]
[426544865,1782576640000,-1812.16,0.00026321,2]
[426544831,1782576640000,-1361.0,0.0002594,2]
[426544776,1782576640000,-201.77700663,0.00025,2]
[426544829,1782576640000,-282.0,0.0002594,2]
[426544784,1782576640000,-884.0,0.000252,5]
[426544788,1782576640000,-152.26269015,0.00025319,2]
[426544786,1782576640000,-657.0,0.000252,5]
[426544792,1782576640000,-150.0,0.00025397,7]
[426544782,1782576640000,-21165.65550432,0.0002518,2]
[426544780,1782576640000,-211.60544441,0.00025151,4]
[426544796,1782576640000,-153.23,0.0002545,7]